[Event "Live Chess"]
[Site "Chess.com"]
[Date "2023.05.21"]
[Round "-"]
[White "OleksiyJr1"]
[Black "manthanit"]
[Result "0-1"]
[WhiteElo "979"]
[BlackElo "1096"]
[TimeControl "300"]
[EndTime "3:35:26 PDT"]
[Termination "manthanit won by resignation"]

1. e4 {[%clk 0:04:54.4]} 1... e6 {[%clk 0:04:59.3]} 2. Nf3 {[%clk 0:04:52.8]}
2... d6 {[%clk 0:04:58.7]} 3. e5 {[%clk 0:04:52.5]} 3... Nc6 {[%clk 0:04:55]} 4.
exd6 {[%clk 0:04:50.6]} 4... Bxd6 {[%clk 0:04:53.8]} 5. Nc3 {[%clk 0:04:50.1]}
5... Nge7 {[%clk 0:04:51.7]} 6. d4 {[%clk 0:04:49.5]} 6... Bb4 {[%clk 0:04:48]}
7. Bd2 {[%clk 0:04:48.3]} 7... O-O {[%clk 0:04:46.2]} 8. a3 {[%clk 0:04:47.1]}
8... Bxc3 {[%clk 0:04:41.5]} 9. b4 {[%clk 0:04:47]} 9... Bxa1 {[%clk 0:04:38.6]}
10. Qxa1 {[%clk 0:04:45]} 10... a6 {[%clk 0:04:32.7]} 11. Bc4 {[%clk 0:04:24.6]}
11... f6 {[%clk 0:04:09.4]} 12. Be3 {[%clk 0:04:13.2]} 12... Kh8 {[%clk
0:04:07.5]} 13. O-O {[%clk 0:04:11.9]} 13... Nf5 {[%clk 0:04:03]} 14. Bf4 {[%clk
0:04:07.9]} 14... Nfxd4 {[%clk 0:03:56.8]} 15. Nxd4 {[%clk 0:04:05.1]} 15...
Nxd4 {[%clk 0:03:54.2]} 16. Rd1 {[%clk 0:04:03.1]} 16... e5 {[%clk 0:03:52]} 17.
Be3 {[%clk 0:04:01.4]} 17... Ne2+ {[%clk 0:03:48.4]} 18. Kf1 {[%clk 0:03:59.3]}
18... Qe7 {[%clk 0:03:08.9]} 19. Kxe2 {[%clk 0:03:30]} 19... Bg4+ {[%clk
0:03:06.8]} 20. f3 {[%clk 0:03:28.7]} 20... Be6 {[%clk 0:03:05.8]} 21. Bxe6
{[%clk 0:03:26]} 21... Qxe6 {[%clk 0:03:04.9]} 22. Rd3 {[%clk 0:03:23.5]} 22...
b6 {[%clk 0:03:03.5]} 23. Qd1 {[%clk 0:03:21.9]} 23... Qe7 {[%clk 0:03:01.6]}
24. Rd7 {[%clk 0:03:20.2]} 24... Qe6 {[%clk 0:02:50.1]} 25. Rxc7 {[%clk
0:03:18.3]} 25... Rad8 {[%clk 0:02:48]} 26. Qg1 {[%clk 0:03:12.5]} 26... Rc8
{[%clk 0:02:41.5]} 27. Bxb6 {[%clk 0:03:10.5]} 27... Rxc7 {[%clk 0:02:39.4]} 28.
Bxc7 {[%clk 0:03:09.2]} 28... Qc4+ {[%clk 0:02:38.2]} 29. Kd1 {[%clk 0:03:06.2]}
29... Qxc7 {[%clk 0:02:37.4]} 30. Qe3 {[%clk 0:03:04.2]} 30... Rc8 {[%clk
0:02:34.7]} 31. Qd3 {[%clk 0:03:03]} 31... Rd8 {[%clk 0:02:32.6]} 32. Qxd8+
{[%clk 0:03:01.3]} 32... Qxd8+ {[%clk 0:02:32]} 33. Kc1 {[%clk 0:03:01.2]} 33...
Qd4 {[%clk 0:02:29.9]} 34. Kb1 {[%clk 0:02:59.7]} 34... Qc3 {[%clk 0:02:29]} 35.
Ka2 {[%clk 0:02:59.6]} 35... Qxc2+ {[%clk 0:02:27.7]} 36. Ka1 {[%clk 0:02:59.1]}
36... Qxg2 {[%clk 0:02:27.2]} 37. a4 {[%clk 0:02:58.3]} 37... Qxh2 {[%clk
0:02:26.7]} 38. a5 {[%clk 0:02:58.2]} 38... Qh1+ {[%clk 0:02:21.8]} 39. Kb2
{[%clk 0:02:57]} 39... Qxf3 {[%clk 0:02:21.3]} 40. b5 {[%clk 0:02:56.9]} 40...
axb5 {[%clk 0:02:19.4]} 41. a6 {[%clk 0:02:56.8]} 41... Qa8 {[%clk 0:02:17.8]}
42. Kb3 {[%clk 0:02:55.9]} 42... Qxa6 {[%clk 0:02:17.4]} 43. Kb4 {[%clk
0:02:55.8]} 43... Qa4+ {[%clk 0:02:15.8]} 44. Kc5 {[%clk 0:02:55.7]} 44... b4
{[%clk 0:02:13.4]} 45. Kd6 {[%clk 0:02:55.6]} 45... b3 {[%clk 0:02:12.6]} 46.
Ke7 {[%clk 0:02:55.5]} 46... Qh4 {[%clk 0:02:09.7]} 47. Kf7 {[%clk 0:02:55.4]}
47... b2 {[%clk 0:02:08.3]} 48. Kf8 {[%clk 0:02:53]} 48... b1=Q {[%clk
0:02:07.1]} 49. Kf7 {[%clk 0:02:52.2]} 49... Qg1 {[%clk 0:02:00.6]} 50. Kf8
{[%clk 0:02:50.6]} 50... g5 {[%clk 0:01:58]} 51. Kf7 {[%clk 0:02:47.3]} 51... f5
{[%clk 0:01:57.4]} 52. Kf8 {[%clk 0:02:47.2]} 52... g4 {[%clk 0:01:55.4]} 53.
Kf7 {[%clk 0:02:47.1]} 53... f4 {[%clk 0:01:54.7]} 54. Kf8 {[%clk 0:02:47]}
54... e4 {[%clk 0:01:54.2]} 55. Kf7 {[%clk 0:02:46.9]} 55... f3 {[%clk
0:01:53.4]} 56. Kf8 {[%clk 0:02:46.8]} 56... e3 {[%clk 0:01:53]} 57. Kf7 {[%clk
0:02:46.7]} 57... g3 {[%clk 0:01:52.5]} 58. Ke8 {[%clk 0:02:44.4]} 58... Qg4
{[%clk 0:01:52]} 59. Kf8 {[%clk 0:02:44.3]} 59... h5 {[%clk 0:01:51.2]} 60. Kf7
{[%clk 0:02:43.7]} 60... h4 {[%clk 0:01:50.7]} 61. Ke8 {[%clk 0:02:43.6]} 61...
h3 {[%clk 0:01:50.1]} 62. Ke7 {[%clk 0:02:43.5]} 62... h2 {[%clk 0:01:49.6]} 63.
Ke8 {[%clk 0:02:43.3]} 63... g2 {[%clk 0:01:49.2]} 64. Kf8 {[%clk 0:02:42.5]}
64... f2 {[%clk 0:01:48.8]} 65. Ke8 {[%clk 0:02:41.9]} 65... e2 {[%clk
0:01:48.3]} 66. Kf8 {[%clk 0:02:41.8]} 66... Qa1 {[%clk 0:01:46.8]} 67. Ke8
{[%clk 0:02:41.7]} 67... Qag7 {[%clk 0:01:43.6]} 68. Kd8 {[%clk 0:02:40.7]}
68... Qh6 {[%clk 0:01:35.6]} 69. Ke8 {[%clk 0:02:35.7]} 69... Qg3 {[%clk
0:01:32.3]} 70. Kd8 {[%clk 0:02:35.6]} 70... Qhf4 {[%clk 0:01:30]} 71. Ke8
{[%clk 0:02:35.5]} 71... Qge3+ {[%clk 0:01:28.9]} 72. Kd7 {[%clk 0:02:34.5]}
72... Qfd4+ {[%clk 0:01:28.4]} 73. Kc8 {[%clk 0:02:34.1]} 73... Qec3+ {[%clk
0:01:28]} 74. Kb7 {[%clk 0:02:34]} 74... Qdb4+ {[%clk 0:01:27.6]} 0-1

[Event "Live Chess"]
[Site "Chess.com"]
[Date "2023.05.21"]
[Round "-"]
[White "RockTroll"]
[Black "enoughtell"]
[Result "1-0"]
[WhiteElo "2234"]
[BlackElo "1107"]
[TimeControl "300"]
[EndTime "3:35:29 PDT"]
[Termination "RockTroll won by resignation"]

1. Nf3 {[%clk 0:04:58.6]} 1... e6 {[%clk 0:04:55.6]} 2. g3 {[%clk 0:04:58.1]}
2... d5 {[%clk 0:04:54.5]} 3. Bg2 {[%clk 0:04:57.7]} 3... c6 {[%clk 0:04:53.3]}
4. O-O {[%clk 0:04:57.6]} 4... Nf6 {[%clk 0:04:52.2]} 5. d3 {[%clk 0:04:57.5]}
5... Bd6 {[%clk 0:04:48.8]} 6. Nbd2 {[%clk 0:04:57.4]} 6... O-O {[%clk
0:04:47.6]} 7. e4 {[%clk 0:04:57.1]} 7... dxe4 {[%clk 0:04:43.3]} 8. dxe4 {[%clk
0:04:55.9]} 8... Be7 {[%clk 0:04:31.3]} 9. Qe2 {[%clk 0:04:50.3]} 9... Na6
{[%clk 0:04:24.8]} 10. Nc4 {[%clk 0:04:47.4]} 10... b5 {[%clk 0:04:15.9]} 11.
Rd1 {[%clk 0:04:44.1]} 11... Qc7 {[%clk 0:04:10.8]} 12. Bf4 {[%clk 0:04:43]}
12... Qb7 {[%clk 0:03:58.9]} 13. Nd6 {[%clk 0:04:42.2]} 13... Bxd6 {[%clk
0:03:56.1]} 14. Bxd6 {[%clk 0:04:42.1]} 14... Rd8 {[%clk 0:03:48.5]} 15. e5
{[%clk 0:04:40.6]} 15... Nd5 {[%clk 0:03:45.1]} 16. Ng5 {[%clk 0:04:36.3]} 16...
h6 {[%clk 0:03:30.3]} 17. Ne4 {[%clk 0:04:33.2]} 17... Bd7 {[%clk 0:03:23.6]}
18. Qg4 {[%clk 0:04:30.8]} 18... Be8 {[%clk 0:02:58.8]} 19. Rxd5 {[%clk
0:04:18.9]} 19... cxd5 {[%clk 0:02:32.2]} 20. Nf6+ {[%clk 0:04:18.1]} 20... Kh8
{[%clk 0:02:26.7]} 21. Bf8 {[%clk 0:04:17.7]} 21... g5 {[%clk 0:02:17.8]} 22.
Qh5 {[%clk 0:04:14.6]} 1-0

[Event "Live Chess"]
[Site "Chess.com"]
[Date "2023.05.21"]
[Round "-"]
[White "RoaringKnights"]
[Black "LiamClery2020"]
[Result "0-1"]
[WhiteElo "1074"]
[BlackElo "1994"]
[TimeControl "300"]
[EndTime "3:35:29 PDT"]
[Termination "LiamClery2020 won by checkmate"]

1. e4 {[%clk 0:04:58.9]} 1... Nf6 {[%clk 0:04:59.9]} 2. Nf3 {[%clk 0:04:57.7]}
2... Nxe4 {[%clk 0:04:58.1]} 3. Bc4 {[%clk 0:04:56.5]} 3... d5 {[%clk
0:04:55.9]} 4. Bb5+ {[%clk 0:04:55]} 4... c6 {[%clk 0:04:54.7]} 5. Bd3 {[%clk
0:04:53.2]} 5... Nf6 {[%clk 0:04:53.8]} 6. O-O {[%clk 0:04:49.8]} 6... e6 {[%clk
0:04:49]} 7. Re1 {[%clk 0:04:48.9]} 7... Bd6 {[%clk 0:04:43.1]} 8. c4 {[%clk
0:04:46.6]} 8... O-O {[%clk 0:04:41.6]} 9. cxd5 {[%clk 0:04:45.5]} 9... cxd5
{[%clk 0:04:37.9]} 10. Nc3 {[%clk 0:04:40.8]} 10... Nc6 {[%clk 0:04:36.8]} 11.
Bc2 {[%clk 0:04:35.8]} 11... e5 {[%clk 0:04:33.6]} 12. d4 {[%clk 0:04:27.3]}
12... e4 {[%clk 0:04:31.7]} 13. Ng5 {[%clk 0:04:17.3]} 13... h6 {[%clk
0:04:28.9]} 14. Ngxe4 {[%clk 0:04:11.4]} 14... dxe4 {[%clk 0:04:27.3]} 15. Bxe4
{[%clk 0:04:09.8]} 15... Nxe4 {[%clk 0:04:25]} 16. Nxe4 {[%clk 0:04:07.7]} 16...
Bf5 {[%clk 0:04:24.6]} 17. Nxd6 {[%clk 0:04:01.8]} 17... Qxd6 {[%clk 0:04:24.5]}
18. Qf3 {[%clk 0:03:57]} 18... Nxd4 {[%clk 0:04:22]} 19. Qh5 {[%clk 0:03:43.3]}
19... Bg6 {[%clk 0:04:16]} 20. Qd1 {[%clk 0:03:35.9]} 20... Rad8 {[%clk
0:04:13.5]} 21. Bd2 {[%clk 0:03:30.7]} 21... Nc2 {[%clk 0:04:03.5]} 22. Re2
{[%clk 0:03:25.8]} 22... Nxa1 {[%clk 0:04:01.8]} 23. Qxa1 {[%clk 0:03:24.9]}
23... Rfe8 {[%clk 0:04:00.2]} 24. Qe1 {[%clk 0:03:21.4]} 24... Rxe2 {[%clk
0:03:58.1]} 25. Qxe2 {[%clk 0:03:20.1]} 25... Qxd2 {[%clk 0:03:58]} 26. Qxd2
{[%clk 0:03:17.9]} 26... Rxd2 {[%clk 0:03:57.9]} 27. h3 {[%clk 0:03:17.7]} 27...
Be4 {[%clk 0:03:53.7]} 28. Kh2 {[%clk 0:03:16.9]} 28... Rxf2 {[%clk 0:03:52.4]}
29. Kg3 {[%clk 0:03:16.1]} 29... Rxg2+ {[%clk 0:03:51.1]} 30. Kf4 {[%clk
0:03:15.1]} 30... Rxb2 {[%clk 0:03:51]} 31. Kxe4 {[%clk 0:03:14.4]} 31... Rxa2
{[%clk 0:03:50.9]} 32. Kd5 {[%clk 0:03:13.9]} 32... Ra6 {[%clk 0:03:50.8]} 33.
Kc5 {[%clk 0:03:13.1]} 33... Rb6 {[%clk 0:03:50.7]} 34. Kc4 {[%clk 0:03:12]}
34... Rg6 {[%clk 0:03:48]} 35. h4 {[%clk 0:03:11.5]} 35... Rg3 {[%clk
0:03:47.9]} 36. h5 {[%clk 0:03:10.6]} 36... Rh3 {[%clk 0:03:47.8]} 37. Kc5
{[%clk 0:03:09.6]} 37... Rxh5+ {[%clk 0:03:47.7]} 38. Kd6 {[%clk 0:03:09.1]}
38... Rf5 {[%clk 0:03:47.4]} 39. Kc7 {[%clk 0:03:07.8]} 39... Rf6 {[%clk
0:03:47]} 40. Kxb7 {[%clk 0:03:07.3]} 40... h5 {[%clk 0:03:46.9]} 41. Kxa7
{[%clk 0:03:06.8]} 41... h4 {[%clk 0:03:46.8]} 42. Kb7 {[%clk 0:03:06.3]} 42...
h3 {[%clk 0:03:46.7]} 43. Kc7 {[%clk 0:03:05.7]} 43... h2 {[%clk 0:03:46.6]} 44.
Kd7 {[%clk 0:03:05.2]} 44... h1=Q {[%clk 0:03:46.5]} 45. Kc7 {[%clk 0:03:04.7]}
45... Qc6+ {[%clk 0:03:44.9]} 46. Kd8 {[%clk 0:03:03.3]} 46... Rd6+ {[%clk
0:03:43.7]} 47. Ke7 {[%clk 0:03:01.9]} 47... Qc7+ {[%clk 0:03:43.3]} 48. Ke8
{[%clk 0:03:00.9]} 48... Rd8# {[%clk 0:03:43.2]} 0-1

[Event "Live Chess"]
[Site "Chess.com"]
[Date "2023.05.21"]
[Round "-"]
[White "JoshMcK"]
[Black "Trendle"]
[Result "0-1"]
[WhiteElo "1518"]
[BlackElo "2658"]
[TimeControl "300"]
[EndTime "3:35:30 PDT"]
[Termination "Trendle won by resignation"]

1. e4 {[%clk 0:04:58.2]} 1... e5 {[%clk 0:04:59.2]} 2. Nf3 {[%clk 0:04:56.7]}
2... Nc6 {[%clk 0:04:58.1]} 3. Bb5 {[%clk 0:04:55.4]} 3... a6 {[%clk 0:04:55.9]}
4. Ba4 {[%clk 0:04:53.8]} 4... Nf6 {[%clk 0:04:54.7]} 5. O-O {[%clk 0:04:52.7]}
5... b5 {[%clk 0:04:54]} 6. Bb3 {[%clk 0:04:51.4]} 6... Be7 {[%clk 0:04:53.4]}
7. c3 {[%clk 0:04:42]} 7... O-O {[%clk 0:04:36.6]} 8. Re1 {[%clk 0:04:36.9]}
8... d5 {[%clk 0:04:33.6]} 9. Bc2 {[%clk 0:04:28.5]} 9... dxe4 {[%clk
0:04:26.8]} 10. Bxe4 {[%clk 0:04:26.8]} 10... Nxe4 {[%clk 0:04:26.1]} 11. Rxe4
{[%clk 0:04:26]} 11... Bf5 {[%clk 0:04:24.6]} 12. Re1 {[%clk 0:04:24.1]} 12...
e4 {[%clk 0:04:23]} 13. Nd4 {[%clk 0:04:15.4]} 13... Nxd4 {[%clk 0:04:21.4]} 14.
cxd4 {[%clk 0:04:15.3]} 14... Qxd4 {[%clk 0:04:20.6]} 15. Nc3 {[%clk 0:04:12.5]}
15... Bc5 {[%clk 0:04:18.4]} 16. Re2 {[%clk 0:04:08.7]} 16... Bg4 {[%clk
0:04:17]} 17. Qe1 {[%clk 0:03:57.4]} 17... Rfe8 {[%clk 0:04:08.2]} 18. Nxe4
{[%clk 0:03:52.1]} 18... Bxe2 {[%clk 0:04:05.1]} 19. Qxe2 {[%clk 0:03:50.9]}
19... Rxe4 {[%clk 0:04:03.7]} 0-1

[Event "Live Chess"]
[Site "Chess.com"]
[Date "2023.05.21"]
[Round "-"]
[White "CeladonFish"]
[Black "ItsNot_Jasper"]
[Result "0-1"]
[WhiteElo "1087"]
[BlackElo "1376"]
[TimeControl "300"]
[EndTime "3:35:39 PDT"]
[Termination "ItsNot_Jasper won by resignation"]

1. d4 {[%clk 0:04:59.1]} 1... Nf6 {[%clk 0:04:59.3]} 2. c4 {[%clk 0:04:57.6]}
2... e6 {[%clk 0:04:58.5]} 3. Nc3 {[%clk 0:04:56.3]} 3... d5 {[%clk 0:04:56.8]}
4. Bg5 {[%clk 0:04:54]} 4... Be7 {[%clk 0:04:55.3]} 5. f3 {[%clk 0:04:49.3]}
5... c5 {[%clk 0:04:52.4]} 6. cxd5 {[%clk 0:04:47.6]} 6... Nxd5 {[%clk 0:04:51]}
7. e4 {[%clk 0:04:45.6]} 7... Nxc3 {[%clk 0:04:49.7]} 8. bxc3 {[%clk 0:04:44.1]}
8... Bxg5 {[%clk 0:04:46.4]} 9. Nh3 {[%clk 0:04:40.6]} 9... Nc6 {[%clk
0:04:40.6]} 10. f4 {[%clk 0:04:35.9]} 10... Be7 {[%clk 0:04:33.2]} 11. Qh5
{[%clk 0:04:32.6]} 11... cxd4 {[%clk 0:04:28.7]} 12. Ng5 {[%clk 0:04:28.8]}
12... Bxg5 {[%clk 0:04:26.7]} 13. fxg5 {[%clk 0:04:25.5]} 13... dxc3 {[%clk
0:04:24.9]} 14. Rd1 {[%clk 0:04:21.4]} 14... Qa5 {[%clk 0:04:19.7]} 15. Kf2
{[%clk 0:04:07.9]} 15... c2 {[%clk 0:04:15.2]} 16. Rc1 {[%clk 0:03:58.5]} 0-1

[Event "Live Chess"]
[Site "Chess.com"]
[Date "2023.05.21"]
[Round "-"]
[White "Richardallis"]
[Black "WombatIn_A_Box"]
[Result "1-0"]
[WhiteElo "1881"]
[BlackElo "570"]
[TimeControl "300"]
[EndTime "3:35:42 PDT"]
[Termination "Richardallis won by checkmate"]

1. d4 {[%clk 0:04:57.8]} 1... d5 {[%clk 0:04:59.4]} 2. Nf3 {[%clk 0:04:56.7]}
2... Nf6 {[%clk 0:04:51.8]} 3. Bg5 {[%clk 0:04:54.7]} 3... h6 {[%clk 0:04:46.9]}
4. Bh4 {[%clk 0:04:53]} 4... g5 {[%clk 0:04:43.9]} 5. Bg3 {[%clk 0:04:51.1]}
5... g4 {[%clk 0:04:42.4]} 6. Ne5 {[%clk 0:04:49.4]} 6... Ne4 {[%clk 0:04:35.8]}
7. e3 {[%clk 0:04:44.5]} 7... Nxg3 {[%clk 0:04:33.9]} 8. hxg3 {[%clk 0:04:43.2]}
8... f6 {[%clk 0:04:32.6]} 9. Nxg4 {[%clk 0:04:40.2]} 9... h5 {[%clk 0:04:29.7]}
10. Nh2 {[%clk 0:04:38]} 10... Bg4 {[%clk 0:04:22.4]} 11. Nxg4 {[%clk
0:04:36.3]} 11... hxg4 {[%clk 0:04:21]} 12. Rxh8 {[%clk 0:04:35.7]} 12... Nc6
{[%clk 0:04:18]} 13. Qxg4 {[%clk 0:04:34.1]} 13... e5 {[%clk 0:04:13.6]} 14.
dxe5 {[%clk 0:04:24.8]} 14... Nxe5 {[%clk 0:04:12.3]} 15. Qe6+ {[%clk
0:04:19.3]} 15... Qe7 {[%clk 0:04:03.8]} 16. Qxe7+ {[%clk 0:04:16.8]} 16... Kxe7
{[%clk 0:04:01.5]} 17. Nd2 {[%clk 0:04:15.1]} 17... Nf7 {[%clk 0:03:53]} 18. Rh7
{[%clk 0:04:10.7]} 18... Re8 {[%clk 0:03:43.9]} 19. Bb5 {[%clk 0:04:08.1]} 19...
c6 {[%clk 0:03:42.8]} 20. Bd3 {[%clk 0:04:06.4]} 20... a6 {[%clk 0:03:41.3]} 21.
Bg6 {[%clk 0:04:05]} 21... Ke6 {[%clk 0:03:33.2]} 22. Bxf7+ {[%clk 0:04:02]}
22... Kd7 {[%clk 0:03:27.8]} 23. Bxe8+ {[%clk 0:04:00.5]} 23... Kxe8 {[%clk
0:03:26.8]} 24. Rxb7 {[%clk 0:03:59.9]} 24... c5 {[%clk 0:03:20.7]} 25. Rb8+
{[%clk 0:03:58.1]} 25... Kf7 {[%clk 0:03:18.7]} 26. Rxf8+ {[%clk 0:03:57.1]}
26... Kxf8 {[%clk 0:03:18.6]} 27. O-O-O {[%clk 0:03:56.3]} 27... Kf7 {[%clk
0:03:18.3]} 28. Nf3 {[%clk 0:03:53.5]} 28... Ke6 {[%clk 0:03:17.2]} 29. Rd3
{[%clk 0:03:51]} 29... c4 {[%clk 0:03:16.1]} 30. Ra3 {[%clk 0:03:50.3]} 30... a5
{[%clk 0:03:13.8]} 31. Rxa5 {[%clk 0:03:48.7]} 31... Kd6 {[%clk 0:03:10.8]} 32.
Nd4 {[%clk 0:03:47.3]} 32... f5 {[%clk 0:03:08.2]} 33. Nxf5+ {[%clk 0:03:45.5]}
33... Ke5 {[%clk 0:03:07.9]} 34. g4 {[%clk 0:03:44.6]} 34... Kf6 {[%clk
0:03:03.2]} 35. f4 {[%clk 0:03:43.1]} 35... c3 {[%clk 0:03:00.5]} 36. bxc3
{[%clk 0:03:41.8]} 36... d4 {[%clk 0:02:59.6]} 37. cxd4 {[%clk 0:03:41]} 37...
Ke6 {[%clk 0:02:58]} 38. Re5+ {[%clk 0:03:38.5]} 38... Kf6 {[%clk 0:02:56.5]}
39. d5 {[%clk 0:03:37.6]} 39... Kf7 {[%clk 0:02:54.6]} 40. d6 {[%clk 0:03:37]}
40... Kf8 {[%clk 0:02:53]} 41. d7 {[%clk 0:03:36.5]} 41... Kf7 {[%clk
0:02:50.8]} 42. a4 {[%clk 0:03:33.5]} 42... Kf8 {[%clk 0:02:48.7]} 43. d8=Q+
{[%clk 0:03:31.6]} 43... Kf7 {[%clk 0:02:47.5]} 44. Qe8+ {[%clk 0:03:30.9]}
44... Kf6 {[%clk 0:02:46.3]} 45. Qe7+ {[%clk 0:03:29.1]} 45... Kg6 {[%clk
0:02:43.7]} 46. Qg7# {[%clk 0:03:27.9]} 1-0

[Event "Live Chess"]
[Site "Chess.com"]
[Date "2023.05.21"]
[Round "-"]
[White "apl_trainer"]
[Black "SmoothBaron"]
[Result "0-1"]
[WhiteElo "1774"]
[BlackElo "2353"]
[TimeControl "300"]
[EndTime "3:35:45 PDT"]
[Termination "SmoothBaron won by resignation"]

1. d4 {[%clk 0:04:57.9]} 1... d5 {[%clk 0:04:57.1]} 2. c4 {[%clk 0:04:56.9]}
2... e6 {[%clk 0:04:53.8]} 3. Nc3 {[%clk 0:04:55.9]} 3... Nf6 {[%clk 0:04:52.6]}
4. Nf3 {[%clk 0:04:54.8]} 4... c6 {[%clk 0:04:51.3]} 5. Bg5 {[%clk 0:04:50.5]}
5... dxc4 {[%clk 0:04:50]} 6. e4 {[%clk 0:04:47.1]} 6... b5 {[%clk 0:04:48.7]}
7. e5 {[%clk 0:04:45]} 7... h6 {[%clk 0:04:47.7]} 8. Bh4 {[%clk 0:04:43.2]} 8...
g5 {[%clk 0:04:46.5]} 9. exf6 {[%clk 0:04:42.2]} 9... gxh4 {[%clk 0:04:45.2]}
10. Ne5 {[%clk 0:04:40.9]} 10... Bd6 {[%clk 0:04:33.5]} 11. Qh5 {[%clk
0:04:10.4]} 11... Qxf6 {[%clk 0:04:14.9]} 12. Ne4 {[%clk 0:04:06.5]} 12... Bb4+
{[%clk 0:04:12.8]} 13. Kd1 {[%clk 0:03:59.9]} 13... Qf5 {[%clk 0:04:03.8]} 14.
Qxh4 {[%clk 0:03:35.8]} 14... Be7 {[%clk 0:03:44.7]} 0-1

[Event "Live Chess"]
[Site "Chess.com"]
[Date "2023.05.21"]
[Round "-"]
[White "Doge_Dandolo"]
[Black "f4nomore"]
[Result "1-0"]
[WhiteElo "1872"]
[BlackElo "1412"]
[TimeControl "300"]
[EndTime "3:35:54 PDT"]
[Termination "Doge_Dandolo won on time"]

1. Nf3 {[%clk 0:04:56.6]} 1... g6 {[%clk 0:04:59.9]} 2. c4 {[%clk 0:04:54.2]}
2... Bg7 {[%clk 0:04:59.8]} 3. Nc3 {[%clk 0:04:53]} 3... d6 {[%clk 0:04:58.8]}
4. d4 {[%clk 0:04:50.7]} 4... Nd7 {[%clk 0:04:56.5]} 5. e4 {[%clk 0:04:49]} 5...
b6 {[%clk 0:04:55.2]} 6. h3 {[%clk 0:04:45.9]} 6... Bb7 {[%clk 0:04:53.9]} 7.
Be3 {[%clk 0:04:42.3]} 7... Ngf6 {[%clk 0:04:51.5]} 8. Qc2 {[%clk 0:04:40.6]}
8... O-O {[%clk 0:04:49.2]} 9. Be2 {[%clk 0:04:39.2]} 9... c5 {[%clk 0:04:47.7]}
10. d5 {[%clk 0:04:37.3]} 10... e6 {[%clk 0:04:23.1]} 11. O-O {[%clk 0:04:33.8]}
11... exd5 {[%clk 0:04:21.3]} 12. cxd5 {[%clk 0:04:28]} 12... a6 {[%clk
0:04:18.7]} 13. a4 {[%clk 0:04:26.9]} 13... Qc8 {[%clk 0:03:55]} 14. Nd2 {[%clk
0:04:12.8]} 14... Ne5 {[%clk 0:03:50]} 15. f4 {[%clk 0:04:07]} 15... Ned7 {[%clk
0:03:42.3]} 16. Nc4 {[%clk 0:04:03.2]} 16... Nh5 {[%clk 0:03:39.8]} 17. Nxd6
{[%clk 0:03:58.4]} 17... Qb8 {[%clk 0:03:35]} 18. e5 {[%clk 0:03:50.3]} 18...
Nxe5 {[%clk 0:03:27.8]} 19. fxe5 {[%clk 0:03:44.8]} 19... Bxe5 {[%clk
0:03:24.9]} 20. Bxh5 {[%clk 0:03:34.8]} 20... Bxd6 {[%clk 0:03:18.1]} 21. Bh6
{[%clk 0:03:26.1]} 21... Qc7 {[%clk 0:02:54.3]} 22. Bxf8 {[%clk 0:03:21.4]}
22... Rxf8 {[%clk 0:02:51.8]} 23. Bf3 {[%clk 0:03:19]} 23... f5 {[%clk
0:02:45.2]} 24. Rae1 {[%clk 0:03:15.5]} 24... Bg3 {[%clk 0:02:36.1]} 25. Re6
{[%clk 0:03:11]} 25... Bc8 {[%clk 0:02:32]} 26. d6 {[%clk 0:03:02.3]} 26... Qg7
{[%clk 0:02:23.9]} 27. Re7 {[%clk 0:02:57.6]} 27... Qd4+ {[%clk 0:02:18.8]} 28.
Kh1 {[%clk 0:02:53.9]} 28... Qxd6 {[%clk 0:02:15.5]} 29. Bd5+ {[%clk 0:02:44.5]}
29... Kh8 {[%clk 0:02:11]} 30. Qe2 {[%clk 0:02:39.2]} 30... Qf6 {[%clk
0:01:41.6]} 31. Rf3 {[%clk 0:02:28.3]} 31... Bh4 {[%clk 0:01:34.6]} 32. Qe5
{[%clk 0:02:21.6]} 32... Qxe5 {[%clk 0:01:13.6]} 33. Rxe5 {[%clk 0:02:19.3]}
33... Bf6 {[%clk 0:01:12]} 34. Re1 {[%clk 0:02:13.9]} 34... Bxc3 {[%clk
0:01:06.8]} 35. Rxc3 {[%clk 0:02:08.9]} 35... Bd7 {[%clk 0:01:05.3]} 36. a5
{[%clk 0:02:06.1]} 36... bxa5 {[%clk 0:00:59.5]} 37. Rxc5 {[%clk 0:02:03.7]}
37... Bb5 {[%clk 0:00:58.2]} 38. Bc4 {[%clk 0:01:57.4]} 38... Bxc4 {[%clk
0:00:52.1]} 39. Rxc4 {[%clk 0:01:56.4]} 39... Rb8 {[%clk 0:00:50.5]} 40. Re2
{[%clk 0:01:54.5]} 40... Kg7 {[%clk 0:00:48.4]} 41. Rc7+ {[%clk 0:01:53.1]}
41... Kh6 {[%clk 0:00:47.2]} 42. Ra7 {[%clk 0:01:52]} 42... Rb6 {[%clk
0:00:45.6]} 43. Kg1 {[%clk 0:01:49.6]} 43... a4 {[%clk 0:00:44.5]} 44. Kf2
{[%clk 0:01:44.6]} 44... a3 {[%clk 0:00:37.6]} 45. bxa3 {[%clk 0:01:42.9]} 45...
Kg5 {[%clk 0:00:32.3]} 46. g3 {[%clk 0:01:40.8]} 46... h5 {[%clk 0:00:30.5]} 47.
Rc2 {[%clk 0:01:33.9]} 47... f4 {[%clk 0:00:23.3]} 48. gxf4+ {[%clk 0:01:30.8]}
48... Kxf4 {[%clk 0:00:21.6]} 49. Rc4+ {[%clk 0:01:29.5]} 49... Ke5 {[%clk
0:00:19.8]} 50. Ra4 {[%clk 0:01:23.8]} 50... Rb2+ {[%clk 0:00:16.8]} 51. Kg3
{[%clk 0:01:22.5]} 51... Rb3+ {[%clk 0:00:14.9]} 52. Kh4 {[%clk 0:01:20.2]}
52... Kf5 {[%clk 0:00:12.5]} 53. Rf7+ {[%clk 0:01:14.2]} 53... Ke6 {[%clk
0:00:10.4]} 54. Rf1 {[%clk 0:01:03.4]} 54... Rb6 {[%clk 0:00:07]} 55. Re4+
{[%clk 0:00:57.9]} 55... Kd5 {[%clk 0:00:05.2]} 56. Rff4 {[%clk 0:00:54]} 56...
a5 {[%clk 0:00:01.3]} 57. Ra4 {[%clk 0:00:50.9]} 1-0

[Event "Live Chess"]
[Site "Chess.com"]
[Date "2023.05.21"]
[Round "-"]
[White "NatashaRegan"]
[Black "TheSmoulderingMaster"]
[Result "1-0"]
[WhiteElo "1726"]
[BlackElo "1669"]
[TimeControl "300"]
[EndTime "3:35:54 PDT"]
[Termination "NatashaRegan won by resignation"]

1. e4 {[%clk 0:04:56.7]} 1... c5 {[%clk 0:04:58.9]} 2. d4 {[%clk 0:04:54.7]}
2... cxd4 {[%clk 0:04:57.7]} 3. c3 {[%clk 0:04:53.6]} 3... dxc3 {[%clk
0:04:57.2]} 4. Nxc3 {[%clk 0:04:52.6]} 4... d6 {[%clk 0:04:56.3]} 5. Nf3 {[%clk
0:04:50.8]} 5... Nc6 {[%clk 0:04:55.2]} 6. Bc4 {[%clk 0:04:49.3]} 6... e6 {[%clk
0:04:53.9]} 7. O-O {[%clk 0:04:47.8]} 7... Nf6 {[%clk 0:04:53]} 8. Qe2 {[%clk
0:04:42.5]} 8... e5 {[%clk 0:04:51.3]} 9. Rd1 {[%clk 0:04:37.7]} 9... Be7 {[%clk
0:04:49.8]} 10. Be3 {[%clk 0:04:32.7]} 10... O-O {[%clk 0:04:48.2]} 11. Rac1
{[%clk 0:04:26.7]} 11... Bg4 {[%clk 0:04:46.5]} 12. h3 {[%clk 0:04:22.9]} 12...
Bh5 {[%clk 0:04:45.4]} 13. a3 {[%clk 0:04:14.5]} 13... a6 {[%clk 0:04:43.7]} 14.
b4 {[%clk 0:04:12.2]} 14... Re8 {[%clk 0:04:35.1]} 15. g4 {[%clk 0:03:56.6]}
15... Bg6 {[%clk 0:04:33.3]} 16. b5 {[%clk 0:03:30.8]} 16... axb5 {[%clk
0:04:28.2]} 17. Nxb5 {[%clk 0:03:27.5]} 17... Bxe4 {[%clk 0:04:23.3]} 18. Bxf7+
{[%clk 0:03:13.8]} 18... Kxf7 {[%clk 0:04:21.6]} 19. Ng5+ {[%clk 0:03:12]} 19...
Kg8 {[%clk 0:04:19.3]} 20. Nxe4 {[%clk 0:03:09.6]} 20... Nxe4 {[%clk 0:04:18.2]}
21. Qc4+ {[%clk 0:03:00.2]} 21... d5 {[%clk 0:04:17.2]} 22. Rxd5 {[%clk
0:02:58.1]} 22... Nd6 {[%clk 0:04:12.7]} 23. Rxd6+ {[%clk 0:02:54.1]} 1-0